bitfinex-derivatives/quotes_ETHF0:USTF0_20260221
["timestamp","ask_amount","ask_price","bid_price","bid_amount"]
[1771632000193,5.11809286,1969.2,1968.7,4.95834608]
[1771632003399,5.11809286,1969.2,1968.3,4.95285024]
[1771632003592,5.11809286,1969.0,1968.3,4.95285024]
[1771632003892,10.8611843,1968.9,1968.3,4.95285024]
[1771632004094,5.11809286,1968.9,1968.3,4.95285024]
[1771632004295,5.11809286,1969.2,1968.3,4.95285024]
[1771632004498,5.11809286,1969.2,1968.3,4.95699736]
[1771632005594,5.1241523,1969.2,1968.3,4.95699736]
[1771632009099,5.1241523,1969.2,1969.0,11.83194452]
[1771632009697,2.87032638,1969.2,1969.0,11.83194452]
[1771632009897,2.87032638,1969.2,1968.7,4.90328344]
[1771632010098,2.87032638,1969.2,1968.4,4.90328344]
[1771632015098,6.39144,1969.7,1968.4,5.15738344]
[1771632015099,4.84152717,1969.6,1968.4,5.15738344]
[1771632016104,4.84783341,1969.6,1968.4,5.15738344]
[1771632017605,0.00630624,1969.6,1968.4,5.15738344]
[1771632018204,4.84783341,1969.6,1968.4,5.15738344]
[1771632018906,4.84783341,1969.6,1968.6,4.90328344]
[1771632019106,0.00630624,1969.6,1968.8,4.90328344]
[1771632019305,4.84783341,1969.6,1968.8,4.90328344]
[1771632019707,0.00630624,1969.6,1968.8,4.90328344]
[1771632021602,4.84783341,1969.6,1968.8,4.90328344]
[1771632029714,0.00630624,1969.6,1968.8,4.90328344]
[1771632029911,0.00630624,1969.6,1969.4,16.73522796]
[1771632030111,4.84783341,1969.6,1969.4,11.83194452]
[1771632033016,4.84783341,1969.6,1968.9,4.90328344]
[1771632034122,4.84783341,1969.6,1968.8,4.96728344]
[1771632037920,4.27550782,1969.4,1968.8,0.064]
[1771632038122,4.21150782,1969.2,1968.4,5.32057898]
[1771632038322,4.21150782,1969.2,1968.3,5.3247261]
[1771632047824,4.2418843,1969.0,1968.3,5.3247261]
[1771632048728,4.2418843,1969.0,1968.3,0.00414712]
[1771632049419,4.2418843,1969.0,1968.3,5.3247261]
[1771632056829,4.23382232,1968.8,1968.3,5.3247261]
[1771632057136,4.23382232,1968.8,1967.5,5.32057898]
[1771632057935,4.23382232,1968.8,1967.5,5.32661247]
[1771632058336,0.25407,1968.7,1967.5,5.32661247]
[1771632058631,4.81809807,1968.6,1967.5,5.32661247]
[1771632067342,4.81809807,1968.6,1967.6,5.4662475]
[1771632067743,0.25407,1968.7,1967.6,5.4662475]
[1771632067943,0.44751333,1968.6,1967.6,5.4662475]
[1771632068143,5.06817384,1968.7,1967.6,5.4662475]
[1771632068343,0.44751916,1968.6,1967.6,5.4662475]
[1771632068543,5.06817384,1968.7,1967.6,5.4662475]
[1771632068745,0.44756937,1968.6,1967.6,5.4662475]
[1771632068946,5.06817384,1968.7,1967.6,5.4662475]
[1771632069143,0.44756827,1968.6,1967.6,5.4662475]
[1771632069343,4.81410384,1968.7,1967.6,5.4662475]
[1771632069656,0.44760609,1968.6,1967.6,5.4662475]
[1771632069946,4.81410384,1968.7,1967.6,5.4662475]
[1771632070147,0.44760611,1968.6,1967.6,5.4662475]
[1771632070445,4.81410384,1968.7,1967.7,5.4662475]
[1771632070641,5.33983494,1968.6,1967.7,5.4662475]
[1771632070836,4.89219592,1968.6,1967.7,5.4662475]
[1771632073649,4.8805075,1968.4,1967.7,5.4662475]
[1771632074143,4.91393507,1968.2,1967.7,5.4662475]
[1771632074540,4.92032777,1968.2,1967.7,5.4662475]
[1771632080252,4.92032777,1968.2,1967.5,5.47228099]
[1771632086757,0.0063927,1968.2,1967.5,5.47228099]
[1771632087462,4.93595101,1968.2,1967.5,5.47228099]
[1771632094872,0.44788959,1968.1,1967.5,5.47228099]
[1771632095073,4.8615189,1968.0,1967.5,5.47228099]
[1771632100179,5.23605004,1967.9,1967.5,5.47228099]
[1771632100381,4.78794574,1967.9,1967.5,5.47228099]
[1771632100880,4.78794574,1968.1,1967.5,5.47228099]
[1771632101188,0.44810697,1968.0,1967.5,5.47228099]
[1771632101376,4.78794574,1968.1,1967.5,5.47228099]
[1771632101577,0.44822622,1968.0,1967.5,5.47228099]
[1771632101875,4.78794574,1968.1,1967.5,5.47228099]
[1771632102077,0.4482303,1968.0,1967.5,5.47228099]
[1771632102276,0.4482303,1967.9,1967.5,5.47228099]
[1771632102581,4.78794574,1968.1,1967.5,5.47228099]
[1771632102778,0.44839422,1968.0,1967.5,5.47228099]
[1771632102979,4.78794574,1968.1,1967.5,5.47228099]
[1771632103179,0.4483943,1968.0,1967.5,5.47228099]
[1771632103382,0.4483943,1967.9,1967.5,5.47228099]
[1771632103577,0.0063927,1968.2,1967.5,5.47228099]
[1771632103880,0.44867336,1968.1,1967.5,5.47228099]
[1771632104080,0.0063927,1968.2,1967.5,5.47228099]
[1771632104281,0.44875541,1968.1,1967.5,5.47228099]
[1771632104476,4.69403027,1968.2,1967.5,5.47228099]
[1771632104683,0.4487628,1968.1,1967.5,5.47228099]
[1771632104882,4.69403027,1968.2,1967.5,5.47228099]
[1771632105081,0.44874996,1968.1,1967.5,5.47228099]
[1771632105282,4.69403027,1968.2,1967.5,5.47228099]
[1771632105482,0.44874843,1968.1,1967.5,5.47228099]
[1771632105683,4.69403027,1968.2,1967.5,5.47228099]
[1771632105886,0.4487815,1968.1,1967.5,5.47228099]
[1771632106080,4.69403027,1968.2,1967.5,5.47228099]
[1771632106278,0.44877988,1968.1,1967.5,5.47228099]
[1771632106482,4.69403027,1968.2,1967.5,5.47228099]
[1771632106682,0.44877995,1968.1,1967.5,5.47228099]
[1771632106881,4.69403027,1968.2,1967.5,5.47228099]
[1771632107184,0.44878,1968.1,1967.5,5.47228099]
[1771632107385,4.69403027,1968.2,1967.5,5.47228099]
[1771632107685,0.44877825,1968.1,1967.5,5.47228099]
[1771632107886,4.69403027,1968.2,1967.5,5.47228099]
[1771632108084,0.44877827,1968.1,1967.5,5.47228099]
[1771632108285,4.69403027,1968.2,1967.5,5.47228099]
[1771632108484,0.44877667,1968.1,1967.5,5.47228099]
[1771632108678,4.69403027,1968.2,1967.5,5.47228099]
[1771632108884,0.44877671,1968.1,1967.5,5.47228099]
[1771632109083,4.69403027,1968.2,1967.5,5.47228099]
[1771632109384,0.4487753,1968.1,1967.5,5.47228099]
[1771632109584,4.69403027,1968.2,1967.5,5.47228099]
[1771632109783,0.4487753,1968.1,1967.5,5.47228099]
[1771632109984,4.69403027,1968.2,1967.5,5.47228099]
[1771632110284,0.44878206,1968.1,1967.5,5.47228099]
[1771632110482,4.69403027,1968.2,1967.5,5.47228099]
[1771632110690,0.44878225,1968.1,1967.5,5.47228099]
[1771632110890,4.69403027,1968.2,1967.5,5.47228099]
[1771632111089,0.44878216,1968.1,1967.5,5.47228099]
[1771632111286,4.69403027,1968.2,1967.5,5.47228099]
[1771632111587,5.10378391,1968.1,1967.5,5.47228099]
[1771632111886,5.10378391,1968.0,1967.5,5.47228099]
[1771632112079,4.65500524,1968.0,1967.5,5.47228099]
[1771632112690,0.44875787,1967.9,1967.5,5.47228099]
[1771632112890,4.65500524,1968.0,1967.5,5.47228099]
[1771632113092,0.44876122,1967.9,1967.5,5.47228099]
[1771632113289,4.65500524,1968.0,1967.5,5.47228099]
[1771632113484,0.44875795,1967.9,1967.5,5.47228099]
[1771632113691,4.65500524,1968.0,1967.5,5.47228099]
[1771632113889,0.44875795,1967.9,1967.5,5.47228099]
[1771632114089,4.65500524,1968.0,1967.5,5.47228099]
[1771632114288,0.4487555,1967.9,1967.5,5.47228099]
[1771632114489,4.65500524,1968.0,1967.5,5.47228099]
[1771632114786,0.44875573,1967.9,1967.5,5.47228099]
[1771632114987,4.65500524,1968.0,1967.5,5.47228099]
[1771632115191,0.44875573,1967.9,1967.5,5.47228099]
[1771632115490,4.66097953,1968.1,1967.5,5.47228099]
[1771632115689,0.44875405,1968.0,1967.5,5.47228099]
[1771632115988,0.44875405,1967.9,1967.5,5.47228099]
[1771632116189,4.66097953,1968.1,1967.5,5.47228099]
[1771632116391,5.10821219,1968.0,1967.5,5.47228099]
[1771632116590,0.44873063,1967.9,1967.5,5.47228099]
[1771632121590,5.09051736,1967.9,1967.5,5.47228099]
[1771632121796,0.44873063,1967.8,1967.5,5.47228099]
[1771632121996,4.64178673,1967.9,1967.5,5.47228099]
[1771632122191,5.04805554,1967.8,1967.5,0.00603349]
[1771632122494,4.5993872,1967.8,1967.5,0.00603349]
[1771632122693,4.5993872,1967.8,1967.4,5.25215562]
[1771632123597,4.5993872,1967.8,1967.4,5.25639818]
[1771632124398,4.5701383,1968.1,1967.4,5.25639818]
[1771632124600,0.44855989,1968.0,1967.4,5.25639818]
[1771632124794,0.0063927,1968.2,1967.4,5.25639818]
[1771632125090,0.44861446,1968.1,1967.4,5.25639818]
[1771632125289,0.44861446,1968.0,1967.4,5.25639818]
[1771632125489,0.0063927,1968.2,1967.4,5.25639818]
[1771632126201,4.54173653,1968.2,1967.4,5.25639818]
[1771632143005,0.0063927,1968.2,1967.4,5.25639818]
[1771632143613,4.40317018,1968.2,1967.4,5.25639818]
[1771632146520,0.0063927,1968.2,1967.4,5.25639818]
[1771632146813,4.34446882,1968.5,1967.4,11.64331515]
[1771632147021,4.34446882,1968.6,1967.5,5.37907355]
[1771632147617,4.58665807,1968.8,1967.6,5.37907355]
[1771632147815,4.59189909,1968.8,1967.6,5.37907355]
[1771632153120,4.59189909,1968.8,1967.7,5.37907355]
[1771632176141,4.0646917,1968.7,1967.8,5.02012624]
[1771632188452,4.0646917,1968.7,1967.7,6.38691697]
[1771632188453,3.78160194,1968.5,1967.7,4.82202905]
[1771632189351,3.76962908,1968.3,1967.5,4.82202905]
[1771632189551,3.76962908,1968.1,1967.4,4.82627161]
[1771632189852,3.76962908,1967.9,1967.4,4.82627161]
[1771632190052,3.76962908,1967.9,1967.4,0.00424256]
[1771632190454,3.76962908,1967.9,1967.2,4.82202905]
[1771632190654,10.50744807,1968.3,1967.2,4.82202905]
[1771632190655,3.76189008,1967.7,1967.2,4.82202905]
[1771632191453,3.76189008,1967.7,1967.2,4.8282906]
[1771632195860,0.25419,1967.8,1967.2,4.8282906]
[1771632196159,3.31376534,1967.7,1967.2,4.8282906]
[1771632207471,3.314799,1967.8,1967.2,4.8282906]
[1771632214976,3.00445846,1968.0,1967.2,4.8282906]
[1771632218174,8.72427035,1967.9,1967.2,4.8282906]
[1771632218374,2.99520091,1967.9,1967.2,4.8282906]
[1771632218775,3.00525312,1967.7,1967.2,4.8282906]
[1771632219275,3.00525312,1967.7,1967.2,0.00626155]
[1771632219669,3.00525312,1967.7,1967.2,4.53019005]
[1771632220167,2.99253863,1967.5,1967.2,4.53019005]
[1771632221177,2.96428082,1967.7,1967.2,4.53019005]
[1771632221377,8.68687816,1967.6,1967.2,4.53019005]
[1771632221578,2.95165107,1967.6,1967.2,4.53019005]
[1771632226984,2.93579669,1967.4,1967.2,0.00626155]
[1771632227184,2.94230397,1967.4,1967.1,0.91114923]
[1771632227374,4.55287863,1967.7,1967.1,0.91114923]
[1771632227578,4.55287863,1967.5,1967.1,0.91114923]
[1771632228278,4.55644638,1967.5,1967.1,0.91497516]
[1771632244687,4.55644638,1967.5,1967.1,0.00382593]
[1771632244887,4.55287863,1967.3,1967.1,0.00382593]
[1771632245990,4.55287863,1967.4,1967.1,4.52775443]
[1771632246589,4.55287863,1967.4,1967.1,0.00382593]
[1771632248192,10.19770745,1967.3,1966.7,4.76624547]
[1771632248494,4.45199024,1967.1,1966.0,4.76624547]
[1771632248691,4.45199024,1966.9,1966.0,4.76624547]
[1771632249391,4.45199024,1966.7,1966.0,4.77002643]
[1771632252696,4.45199024,1966.1,1965.7,4.76624547]
[1771632252998,4.45199024,1966.3,1965.7,4.76624547]
[1771632253795,4.45711907,1966.3,1965.7,4.7699012]
[1771632262206,0.00512883,1966.3,1965.7,4.7699012]
[1771632262701,4.45199024,1966.8,1965.7,4.7699012]
[1771632263802,4.45671004,1966.8,1965.7,4.7699012]
[1771632267506,4.45671004,1966.8,1965.7,5.0243612]
[1771632267904,0.0047198,1966.8,1965.7,5.0243612]
[1771632268104,4.45199024,1967.1,1965.7,5.0243612]
[1771632269009,4.45638916,1967.1,1965.7,5.0243612]
[1771632272299,0.00439892,1967.1,1966.1,4.76624547]
[1771632272505,0.00439892,1967.1,1966.3,4.76624547]
[1771632276410,4.45199024,1967.3,1966.3,4.76624547]
[1771632277214,4.45605917,1967.3,1966.3,4.76624547]
[1771632277806,4.5500975,1967.6,1966.5,4.65625166]
[1771632278807,4.55537913,1967.6,1966.5,4.65625166]
[1771632280316,4.5500975,1967.4,1966.5,4.65625166]
[1771632286820,4.55537913,1967.6,1966.5,4.65625166]
[1771632287522,0.00528163,1967.6,1966.7,4.65625166]
[1771632288916,0.00528163,1967.6,1966.8,0.25432]
[1771632289123,0.00528163,1967.6,1966.9,4.65625166]
[1771632299622,4.55537913,1967.6,1966.9,4.65625166]
[1771632303524,0.00528163,1967.6,1966.9,4.65625166]
[1771632303729,4.5500975,1968.0,1967.1,4.65625166]
[1771632304725,4.55391475,1968.0,1967.1,4.6601146]
[1771632307029,0.00381725,1968.0,1967.1,4.6601146]
[1771632307930,0.00381725,1968.0,1967.2,4.71522477]
[1771632308829,4.62915084,1968.3,1967.2,4.71522477]
[1771632309727,4.63289243,1968.3,1967.2,4.71522477]
[1771632310132,4.63289243,1968.3,1967.4,4.71522477]
[1771632330642,4.63289243,1968.3,1967.6,4.71522477]
[1771632332046,4.62915084,1968.4,1967.6,4.71522477]
[1771632332238,4.62915084,1968.4,1967.7,4.71522477]
[1771632332841,0.00452633,1968.4,1967.7,4.71522477]
[1771632333043,0.00452633,1968.4,1967.9,4.71522477]
[1771632333440,4.62915084,1968.6,1967.9,4.71522477]
[1771632333639,4.62915084,1968.6,1967.8,4.71522477]
[1771632334543,4.63313757,1968.6,1967.7,4.71522477]
[1771632340651,4.6974469,1968.2,1967.4,4.46179783]
[1771632340954,4.6974469,1968.2,1967.2,4.46179783]
[1771632343051,4.6974469,1968.0,1967.1,4.46566077]
[1771632359671,4.6974469,1968.1,1967.3,4.46179783]
[1771632360267,4.6974469,1968.1,1967.5,4.46179783]
[1771632378483,4.6974469,1968.1,1967.3,7.96481942]
[1771632378687,4.6974469,1968.1,1967.1,0.00386294]
[1771632378985,4.6974469,1968.1,1967.1,4.2066764]
[1771632379486,4.54182062,1967.9,1967.1,4.2066764]
[1771632379980,4.54182062,1967.9,1967.1,0.00386294]
[1771632381188,4.54182062,1967.7,1966.6,4.20281346]
[1771632382183,4.54182062,1967.7,1966.6,4.20712014]
[1771632397604,4.54182062,1967.7,1966.8,3.95046633]
[1771632406211,4.54182062,1967.7,1967.0,3.95046633]
[1771632412310,0.25414,1968.2,1967.0,3.95046633]
[1771632412311,4.32181887,1967.8,1967.0,3.95046633]
[1771632412521,4.32181887,1967.8,1967.1,3.95046633]
[1771632412814,4.32181887,1968.3,1967.1,3.95046633]
[1771632413014,4.32181887,1968.1,1967.1,3.95046633]
[1771632413210,4.32181887,1968.1,1967.2,3.95046633]
[1771632417720,4.32181887,1968.1,1967.1,3.95046633]
[1771632429434,3.98089751,1967.9,1967.1,3.95046633]
[1771632447647,3.98089751,1968.2,1967.2,4.05847304]
[1771632447847,3.98089751,1968.2,1967.2,12.01956229]
[1771632448042,3.98089751,1968.2,1967.3,4.05847304]
[1771632452145,3.98089751,1968.0,1967.3,4.05847304]
[1771632493587,3.98089751,1968.0,1967.1,3.34615872]
[1771632493788,3.53209596,1967.8,1967.1,3.34615872]
[1771632494489,3.53209596,1967.8,1966.7,3.34615872]
[1771632494490,3.53209596,1967.6,1966.7,3.34615872]
[1771632494692,3.53209596,1967.4,1966.7,3.34615872]
[1771632502698,3.53209596,1967.7,1966.7,3.34615872]
[1771632521205,3.25250307,1967.5,1966.7,3.34615872]
[1771632522713,3.25250307,1967.5,1966.6,0.00430668]
[1771632522910,3.25250307,1967.0,1966.3,3.42107114]
[1771632523910,3.25747357,1967.0,1966.3,3.42710902]
[1771632525809,3.25250307,1966.8,1965.8,3.42107114]
[1771632526008,3.25250307,1966.8,1965.9,3.42107114]
[1771632526512,3.25250307,1966.9,1965.9,3.42107114]
[1771632526910,3.25250307,1966.9,1965.9,3.42579077]
[1771632533615,0.0049705,1967.0,1966.1,3.42107114]
[1771632533816,3.25250307,1967.2,1966.3,3.42107114]
[1771632534727,3.25250307,1967.8,1966.3,3.42107114]
[1771632534921,3.25250307,1967.8,1966.5,3.42107114]
[1771632535125,3.25647614,1967.8,1966.5,3.42107114]
[1771632539627,3.25647614,1967.8,1966.6,3.42107114]
[1771632539830,3.25647614,1967.8,1966.8,3.42107114]
[1771632541523,3.25647614,1967.8,1966.5,3.42107114]
[1771632541728,3.25250307,1967.6,1966.5,3.42107114]
[1771632543333,3.25250307,1967.4,1966.5,3.42107114]
[1771632545135,3.25250307,1967.4,1966.3,3.42107114]
[1771632555441,3.25250307,1967.4,1966.3,3.40185889]
[1771632555743,0.25423,1967.5,1966.3,3.40185889]
[1771632555744,3.17115711,1967.2,1966.3,3.40185889]
[1771632570456,3.17115711,1967.2,1966.1,7.96108925]
[1771632570457,3.42543711,1967.2,1966.1,3.40185889]
[1771632570658,3.17115711,1967.0,1966.1,3.40185889]
[1771632582663,3.23522671,1966.8,1966.1,3.40185889]
[1771632585266,3.23522671,1966.8,1966.0,3.2226516]
[1771632585466,3.23522671,1966.6,1966.0,3.2226516]
[1771632592469,3.23522671,1966.8,1966.0,3.2226516]
[1771632601270,3.23522671,1967.3,1966.0,3.2226516]
[1771632601476,4.51590072,1967.4,1966.1,3.2226516]
[1771632601477,3.23522671,1967.1,1966.1,3.2226516]
[1771632605173,3.23522671,1967.1,1966.3,3.2226516]
[1771632605377,3.23522671,1967.5,1966.4,3.2226516]
[1771632616287,3.23522671,1967.5,1966.6,3.16887917]
[1771632626196,3.23522671,1967.5,1966.8,3.16887917]
[1771632626398,2.9206588,1967.7,1966.9,3.16887917]
[1771632627501,2.92463187,1967.8,1966.9,3.16887917]
[1771632630003,2.92463187,1967.8,1967.1,3.16887917]
[1771632631301,0.00397307,1967.8,1967.1,3.16887917]
[1771632631501,2.9206588,1968.0,1967.3,3.16887917]
[1771632632498,2.92461662,1968.0,1967.3,3.17398258]
[1771632636498,0.00395782,1968.0,1967.3,3.17398258]
[1771632637299,2.9206588,1968.2,1967.5,2.82054524]
[1771632637605,0.25403,1969.0,1967.3,0.00510341]
[1771632637606,2.80783244,1968.3,1967.7,2.82054524]
[1771632637806,2.80783244,1968.9,1967.9,2.82054524]
[1771632638303,2.81300358,1968.9,1967.9,2.82054524]
[1771632646606,2.81300358,1968.9,1968.1,2.82054524]
[1771632646910,2.81300358,1968.9,1967.9,2.82054524]
[1771632655122,2.81300358,1968.9,1968.1,2.82054524]
[1771632664427,2.81300358,1968.9,1968.0,3.07470524]
[1771632664828,2.81300358,1968.9,1968.0,2.82054524]
[1771632666835,2.81300358,1968.9,1967.8,2.82054524]
[1771632667034,2.80783244,1968.7,1967.8,2.82054524]
[1771632667237,2.80783244,1968.7,1967.9,2.82054524]
[1771632680243,2.80783244,1968.7,1967.8,2.98144938]
[1771632681944,2.80783244,1968.7,1967.7,2.98144938]
[1771632682143,2.94496689,1968.5,1967.7,2.98144938]
[1771632684051,2.94496689,1968.5,1967.9,2.98144938]
[1771632688251,0.00517114,1968.9,1967.9,2.98144938]
[1771632688252,2.94496689,1968.8,1967.9,2.98144938]
[1771632691958,2.94496689,1968.8,1968.0,2.98144938]
[1771632694458,2.94496689,1968.8,1968.1,2.98144938]
[1771632694662,2.95013803,1968.9,1968.1,2.98144938]
[1771632712480,2.95013803,1968.9,1967.9,10.83819436]
[1771632712980,2.90671579,1968.7,1967.9,10.83819436]
[1771632713281,2.90671579,1968.7,1967.9,7.96108925]
[1771632713580,2.90671579,1968.5,1967.8,2.87710511]
[1771632713979,2.90671579,1968.5,1967.7,7.96108925]
[1771632714180,2.90671579,1968.5,1967.6,7.96108925]
[1771632714676,2.90671579,1968.5,1967.6,10.83819436]
[1771632715781,2.90671579,1968.5,1967.7,2.87710511]
[1771632716079,2.90671579,1968.5,1967.6,10.83819436]
[1771632716279,2.90671579,1968.5,1967.7,2.87710511]
[1771632719383,2.90671579,1968.3,1967.7,2.87710511]
[1771632723788,2.90671579,1968.8,1967.7,2.87710511]
[1771632723988,0.25923114,1968.9,1967.7,2.87710511]
[1771632723989,2.90671579,1968.6,1967.7,2.87710511]
[1771632725390,2.90671579,1968.6,1967.7,3.13129511]
[1771632739301,2.90671579,1968.6,1968.0,2.93069483]
[1771632739692,2.81692193,1968.8,1968.0,2.93069483]
[1771632745905,2.82209307,1968.9,1968.0,2.93069483]
[1771632749403,2.82209307,1968.9,1968.2,2.93069483]
[1771632770226,2.69144179,1968.7,1968.2,2.93069483]
[1771632776440,2.69144179,1968.7,1968.1,7.96108925]
[1771632776738,2.69144179,1968.7,1968.1,2.85414502]
[1771632777339,2.69144179,1968.7,1968.2,2.85414502]
[1771632782741,2.69661293,1968.9,1968.2,2.85414502]
[1771632782937,0.00517114,1968.9,1968.2,10.81523427]
[1771632783143,0.00517114,1968.9,1968.3,2.85414502]
[1771632783843,0.00517114,1968.9,1968.3,10.81523427]
[1771632784042,0.00517114,1968.9,1968.4,2.85414502]
[1771632784943,2.69661293,1968.9,1968.4,2.85414502]
[1771632787844,2.69661293,1968.9,1968.3,2.70605127]
[1771632788148,2.69661293,1968.9,1968.2,7.96108925]
[1771632788149,2.69661293,1968.9,1968.2,2.70605127]
[1771632789951,2.69661293,1968.9,1968.0,10.66714052]
[1771632790249,2.69661293,1968.9,1968.1,2.70605127]
[1771632822672,2.69661293,1968.9,1968.2,2.74844481]
[1771632835481,2.69661293,1968.9,1968.3,2.74844481]
[1771632845299,2.69661293,1968.9,1968.1,10.70953406]
[1771632845501,2.69661293,1968.9,1967.8,10.70953406]
[1771632845700,2.54916886,1968.7,1967.8,2.74844481]
[1771632845899,6.51949228,1968.8,1967.8,2.74844481]
[1771632845900,2.54916886,1968.5,1967.8,2.74844481]
[1771632857911,2.54916886,1968.5,1967.4,2.57414668]
[1771632859217,2.80327886,1968.5,1967.4,2.57414668]
[1771632860913,3.03028259,1968.3,1967.3,2.57925009]
[1771632862713,3.03028259,1968.3,1967.3,0.00510341]
[1771632863016,3.03028259,1968.3,1967.3,2.57925009]
[1771632874426,2.77616259,1968.1,1967.3,2.57925009]
[1771632888335,2.54362517,1967.9,1967.3,2.57925009]
[1771632891641,2.54362517,1967.7,1967.3,2.57925009]
[1771632894142,2.54362517,1967.7,1967.3,0.00510341]
[1771632895144,2.54362517,1967.7,1967.1,2.66611109]
[1771632896036,2.54362517,1967.7,1967.1,2.66993968]
[1771632896939,2.54362517,1968.3,1967.2,2.66611109]
[1771632897148,2.29800737,1968.1,1967.5,2.66611109]
[1771632900143,2.54362517,1968.6,1967.5,2.66611109]
[1771632900442,3.00499647,1968.5,1967.6,2.66611109]
[1771632900642,2.54362517,1968.5,1967.6,2.66611109]
[1771632902245,0.25408,1968.7,1967.6,2.66611109]
[1771632902246,2.54362517,1968.3,1967.6,2.66611109]
[1771632915956,2.54362517,1968.3,1967.3,2.62447098]
[1771632916262,2.48003012,1968.1,1967.3,2.62447098]
[1771632921456,2.48003012,1968.1,1967.4,2.62447098]
[1771632924269,2.48003012,1968.1,1967.5,2.62447098]
[1771632930073,2.48003012,1968.6,1967.6,2.62447098]
[1771632930271,2.48003012,1968.4,1967.6,2.62447098]
[1771632930668,2.48003012,1968.7,1967.6,2.62447098]
[1771632930869,2.94141119,1968.6,1967.7,2.62447098]
[1771632931071,2.94141119,1968.5,1967.7,2.62447098]
[1771632931272,2.48003012,1968.5,1967.7,2.62447098]
[1771632936377,0.00517114,1968.9,1967.9,2.62447098]
[1771632936378,2.48520126,1968.9,1967.9,2.62447098]
[1771632936678,2.48520126,1968.9,1968.0,2.62447098]
[1771632943575,2.48520126,1968.9,1967.9,6.3873181]
[1771632943774,2.66391993,1968.5,1967.8,2.58379384]
[1771632943983,2.66391993,1968.5,1967.6,2.58379384]
[1771632947376,2.66391993,1968.3,1967.6,2.58379384]
[1771632956084,2.66391993,1968.3,1967.2,2.58379384]
[1771632956285,2.66391993,1968.1,1967.2,2.58379384]
[1771632973096,2.60430577,1968.3,1967.2,2.58379384]
[1771632973296,9.02302459,1968.2,1967.2,2.58379384]
[1771632973497,0.45692495,1968.1,1967.2,2.58379384]
[1771632973895,3.06123072,1968.1,1967.2,2.58379384]
[1771632974097,2.60430577,1968.1,1967.2,2.58379384]
[1771632975397,2.60430577,1968.1,1967.3,2.58980517]
[1771632976499,2.60430577,1968.3,1967.3,2.58980517]
[1771632976797,2.60430577,1968.4,1967.4,2.58980517]
[1771632986606,2.60430577,1968.4,1967.5,2.58980517]
[1771632992613,2.85841577,1968.4,1967.5,2.58980517]
[1771632999211,2.62200249,1968.2,1967.5,2.58980517]
[1771633013232,2.62200249,1968.0,1967.5,2.58980517]
[1771633013931,2.62200249,1968.0,1967.2,2.40715047]
[1771633037449,2.5530849,1967.8,1967.2,2.40715047]
[1771633069479,2.47016532,1968.2,1967.2,2.40715047]
[1771633069781,2.47016532,1968.0,1967.3,2.44322449]
[1771633072085,2.47016532,1968.3,1967.3,2.44322449]
[1771633072286,8.87494369,1968.2,1967.3,2.44322449]
[1771633072484,0.44987916,1968.1,1967.3,2.44322449]
[1771633072680,2.47016532,1968.2,1967.3,2.44322449]
[1771633072887,2.91993907,1968.1,1967.3,2.44322449]
[1771633073086,2.47016532,1968.1,1967.3,2.44322449]
[1771633073788,2.47016532,1968.3,1967.4,2.44322449]
[1771633081690,0.25411,1968.5,1967.1,0.00382859]
[1771633081691,2.47016532,1968.1,1967.2,2.44322449]
[1771633090297,2.47016532,1968.1,1967.2,10.40431374]
[1771633090499,2.47016532,1968.1,1967.3,2.33677601]
[1771633092398,2.47016532,1968.1,1967.4,2.33677601]
[1771633099411,2.47016532,1968.1,1967.3,2.33677601]
[1771633101214,2.47016532,1968.1,1967.2,2.33677601]
[1771633101514,2.26894106,1967.9,1967.2,2.33677601]
[1771633113031,2.26894106,1967.9,1967.1,2.3406046]
[1771633113828,2.26894106,1967.9,1967.1,0.00382859]
[1771633114630,2.26894106,1967.9,1967.1,2.3406046]
[1771633129135,2.32854706,1967.7,1967.1,2.3406046]
[1771633146748,2.32854706,1967.5,1967.1,0.00100111]
[1771633147150,2.32854706,1967.5,1966.8,2.36567406]
[1771633148252,2.33452856,1967.5,1966.8,2.36999927]
[1771633148948,2.3643501,1967.3,1966.8,0.00432521]
[1771633150152,2.3643501,1967.3,1966.1,2.45079624]
[1771633150951,2.3643501,1967.3,1966.1,2.45598644]
[1771633153651,2.3643501,1967.3,1966.2,0.25439]
[1771633153955,2.3643501,1967.3,1966.3,2.45079624]
[1771633155549,2.3703316,1967.5,1966.3,2.45079624]
[1771633157953,2.6245616,1967.5,1966.3,2.45079624]
[1771633158348,2.3643501,1967.3,1966.3,2.45079624]
[1771633162150,2.3643501,1967.1,1966.3,2.45079624]
[1771633162753,2.3643501,1966.9,1966.1,2.45598644]
[1771633173062,2.3643501,1967.1,1966.1,2.45598644]
[1771633173862,2.3643501,1967.4,1966.1,2.45598644]
[1771633174261,2.3643501,1967.4,1966.3,2.45079624]
[1771633176169,2.3643501,1967.2,1966.2,2.45079624]
[1771633186072,2.43152776,1967.0,1966.2,2.45079624]
[1771633204294,2.43152776,1967.0,1966.2,10.41188549]
[1771633204490,2.43152776,1967.0,1966.3,2.3238863]
[1771633249924,0.25425,1967.3,1966.3,2.3238863]
[1771633250124,2.2915793,1967.1,1966.3,2.3238863]
[1771633250324,0.45003895,1967.0,1966.3,2.3238863]
[1771633250521,2.2915793,1967.1,1966.3,2.3238863]
[1771633250820,0.45001727,1967.0,1966.3,2.3238863]
[1771633251020,2.2915793,1967.1,1966.3,2.3238863]
[1771633251218,0.45001736,1967.0,1966.3,2.3238863]
[1771633251418,2.2915793,1967.1,1966.3,2.3238863]
[1771633251619,0.44999323,1967.0,1966.3,2.3238863]
[1771633251819,2.2915793,1967.1,1966.3,2.3238863]
[1771633264738,2.2915793,1967.3,1966.4,2.25480693]
[1771633265040,2.2915793,1967.3,1966.5,2.25480693]
[1771633267338,0.0059815,1967.5,1966.5,2.25480693]
[1771633267642,2.29640423,1967.4,1966.5,2.25480693]
[1771633279342,0.0059815,1967.5,1966.6,2.20180385]
[1771633279543,0.0059815,1967.5,1966.9,2.20180385]
[1771633279748,2.29640423,1967.7,1966.9,2.20180385]
[1771633280754,2.29996648,1967.7,1966.9,2.20180385]
[1771633294260,2.29996648,1967.7,1966.9,10.1628931]
[1771633294565,2.29996648,1967.7,1967.0,2.20180385]
[1771633308378,2.29996648,1967.7,1967.1,2.18532273]
[1771633309172,2.29996648,1967.7,1967.0,7.96108925]
[1771633309376,2.29996648,1967.7,1966.9,2.18532273]
[1771633310974,2.29996648,1967.7,1966.6,10.40074198]
[1771633313273,2.29996648,1967.7,1966.6,2.43965273]
[1771633314079,2.29996648,1967.7,1966.6,2.18532273]
[1771633314978,2.30786729,1967.5,1966.5,2.18532273]
[1771633319480,2.30786729,1967.3,1966.5,2.18532273]
[1771633322579,2.30786729,1967.3,1966.3,2.18532273]
[1771633328680,2.30786729,1967.3,1966.2,2.42055688]
[1771633331087,2.30786729,1967.3,1966.2,2.16616688]
[1771633332889,0.25426,1967.2,1966.2,2.16616688]
[1771633333095,2.26713911,1967.1,1966.1,0.0051902]
[1771633334395,2.26713911,1966.9,1966.1,0.0051902]
[1771633336595,2.26713911,1966.9,1966.1,2.17135708]
[1771633338503,2.26713911,1966.9,1966.1,0.0051902]
[1771633339801,2.26713911,1966.9,1966.1,2.17135708]
[1771633351004,2.26713911,1967.1,1966.1,2.17135708]